Workbook

Sheet Info (hidden)
A2: TAG | B2: MAKE | C2: MODEL | D2: THERMAL EFFICIENCY | E2: CONST. TYPE (STD. or ASME) | F2: FUEL TYPE | G2: BTU/HR INPUT | H2: TURNDOWN RATIO | I2: GAS CONN. DIA | J2: MAX INLET GAS PRESS. (IN. W.C.) | K2: MIN. INLET GAS PRESS. (IN.W.C) | L2: GALLON CAPACITY | M2: GPH @ RISE | N2: 1st HR. DELIVERY | O2: WATER CONN. DIAMETER | P2: DRAIN SIZE | Q2: COMMON PIPING: | R2: DOMESTIC E.W.T. (°F) | S2: STORED H20 TEMP (F°) | T2: POWER SUPPLY | U2: HEATER CONTROLS | V2: TOTAL AMPS | W2: AIR INLET DIAMETER | X2: VENT DIAMETER | Y2: VENT MATERIAL | Z2: HEIGHT | AA2: DIAMETER
A4: SWR125 | B4: LOCHINVAR | C4: SWR125 | D4: 0.96 | E4: STD. | G4: 125000 | H4: 5:1 | I4: 1/2” | J4: 14" | L4: 65 | O4: 1-1/2" | P4: 3/4" | T4: 120V/1PH | U4: 24V | V4: 2.5 | W4: 3” | X4: 3” | Z4: 62-1/2" | AA4: 28"
A5: SWA150 | B5: LOCHINVAR | C5: SWA150 | D5: 0.96 | E5: ASME | G5: 150000 | H5: 5:1 | I5: 1/2” | J5: 14" | L5: 90 | O5: 1-1/2" | P5: 3/4" | T5: 120V/1PH | U5: 24V | V5: 2.5 | W5: 3” | X5: 3” | Z5: 76" | AA5: 28"
A6: SWR150 | B6: LOCHINVAR | C6: SWR150 | D6: 0.96 | E6: STD. | G6: 150000 | H6: 5:1 | I6: 1/2” | J6: 14" | L6: 90 | O6: 1-1/2" | P6: 3/4" | T6: 120V/1PH | U6: 24V | V6: 2.5 | W6: 3” | X6: 3” | Z6: 76" | AA6: 28"
A7: SWA200 | B7: LOCHINVAR | C7: SWA200 | D7: 0.96 | E7: ASME | G7: 199000 | H7: 5:1 | I7: 1/2” | J7: 14" | L7: 90 | O7: 1-1/2" | P7: 3/4" | T7: 120V/1PH | U7: 24V | V7: 3 | W7: 3” | X7: 3” | Z7: 76" | AA7: 28"
A8: SWR200 | B8: LOCHINVAR | C8: SWR200 | D8: 0.96 | E8: STD. | G8: 199000 | H8: 5:1 | I8: 1/2” | J8: 14" | L8: 90 | O8: 1-1/2" | P8: 3/4" | T8: 120V/1PH | U8: 24V | V8: 3 | W8: 3” | X8: 3” | Z8: 76" | AA8: 28"
A9: SWA285 | B9: LOCHINVAR | C9: SWA285 | D9: 0.95 | E9: ASME | G9: 285000 | H9: 5:1 | I9: 3/4” | J9: 14" | L9: 110 | O9: 1-1/2" | P9: 3/4" | T9: 120V/1PH | U9: 24V | V9: 6.2 | W9: 4” | X9: 4” | Z9: 77-1/2" | AA9: 34"
A10: SWR285 | B10: LOCHINVAR | C10: SWR285 | D10: 0.95 | E10: STD. | G10: 285000 | H10: 5:1 | I10: 3/4” | J10: 14" | L10: 110 | O10: 1-1/2" | P10: 3/4" | T10: 120V/1PH | U10: 24V | V10: 6.2 | W10: 4” | X10: 4” | Z10: 77-1/2" | AA10: 34"
A11: SWA400 | B11: LOCHINVAR | C11: SWA400 | D11: 0.95 | E11: ASME | G11: 399000 | H11: 5:1 | I11: 1” | J11: 14" | L11: 110 | O11: 1-1/2" | P11: 3/4" | T11: 120V/1PH | U11: 24V | V11: 6.2 | W11: 4” | X11: 4” | Z11: 77-1/2" | AA11: 34"
A12: SWR400 | B12: LOCHINVAR | C12: SWR400 | D12: 0.95 | E12: STD. | G12: 399000 | H12: 5:1 | I12: 1” | J12: 14" | L12: 110 | O12: 1-1/2" | P12: 3/4" | T12: 120V/1PH | U12: 24V | V12: 6.2 | W12: 4” | X12: 4” | Z12: 77-1/2" | AA12: 34"
A13: SWA500 | B13: LOCHINVAR | C13: SWA500 | D13: 0.96 | E13: ASME | G13: 500000 | H13: 5:1 | I13: 1” | J13: 14" | L13: 110 | O13: 1-1/2" | P13: 3/4" | T13: 120V/1PH | U13: 24V | V13: 7 | W13: 4” | X13: 4” | Z13: 77-1/2" | AA13: 34"
A14: Inlet Pressure | M14: GPH at Temp Rise | Q14: 1st Hour
A15: Nat. Gas | B15: 4" | M15: 70 | N15: 80 | O15: 100 | P15: 140 | R15: 70 | S15: 80 | T15: 100 | U15: 140 | Y15: PVC
A16: L.P. | B16: 8" | L16: SWR125 | M16: 208 | N16: 181.8181818 | O16: 145.4545455 | P16: 104 | Q16: SWR125 | R16: =SUM(M16,M28) -> 253.5 | S16: =SUM(N16,M28) -> 227.3181818 | T16: =SUM(O16,M27) -> 145.4545455 | U16: =SUM(P16,M28) -> 149.5 | Y16: CPVC
L17: SWA150 | M17: 249 | N17: 218.1818182 | O17: 174.5454545 | P17: 125 | Q17: SWA150 | R17: 312 | S17: =SUM(N17,M29) -> 281.1818182 | T17: 247 | U17: 188 | Y17: PolyPro
A18: <Select> | J18: 70 | L18: SWR150 | M18: 249 | N18: 218.1818182 | O18: 174.5454545 | P18: 125 | Q18: SWR150 | R18: 312 | S18: 281.1818182 | T18: 247 | U18: 188 | Y18: St. Steel
A19: 100289339 (SWR/A 125-285) | J19: 80 | L19: SWA200 | M19: 331 | N19: 289.4545455 | O19: 232.9756098 | P19: 165 | Q19: SWA200 | R19: 394 | S19: 352.4545455 | T19: 304 | U19: 228
A20: 100289340 (SWR/A 400-500) | J20: 100 | L20: SWR200 | M20: 331 | N20: 289.4545455 | O20: 232.9756098 | P20: 165 | Q20: SWR200 | R20: 394 | S20: 352.4545455 | T20: 304 | U20: 228
J21: 140 | L21: SWA285 | M21: 469 | N21: 410.2272727 | O21: 328.1818182 | P21: 234 | Q21: SWA285 | R21: 546 | S21: 487.2272727 | T21: 416 | U21: 311
L22: SWR285 | M22: 469 | N22: 410.2272727 | O22: 328.1818182 | P22: 234 | Q22: SWR285 | R22: 546 | S22: 487.2272727 | T22: 416 | U22: 311
L23: SWA400 | M23: 656 | N23: 574.3181818 | O23: 459.4545455 | P23: 328 | Q23: SWA400 | R23: 733 | S23: 651.3181818 | T23: 547 | U23: 405
L24: SWR400 | M24: 656 | N24: 574.3181818 | O24: 459.4545455 | P24: 328 | Q24: SWR400 | R24: 733 | S24: 651.3181818 | T24: 547 | U24: 405
L25: SWA500 | M25: 831 | N25: 727.2727273 | O25: 581.8181818 | P25: 416 | Q25: SWA500 | R25: 908 | S25: 804.2727273 | T25: 670 | U25: 493
D26: 70 | E26: 100 | F26: 140 | H26: Finding 80o Delta
D27: =H27/I28 -> 207.7922078 | E27: =H27/I29 -> 145.4545455 | F27: =H27/I30 -> 103.8961039 | H27: =PRODUCT(D4,G4) -> 120000 | I27: =PRODUCT(8.25,80) -> 660 | J27: =H27/I27 -> 181.8181818 | M27: 70% Capacity
D28: =H28/I28 -> 249.3506494 | E28: =H28/I29 -> 174.5454545 | F28: =H28/I30 -> 124.6753247 | H28: =PRODUCT(D5,G5) -> 144000 | I28: =PRODUCT(8.25,70) -> 577.5 | J28: =H28/I27 -> 218.1818182 | M28: =PRODUCT(L4,0.7) -> 45.5
D29: =H29/I28 -> 249.3506494 | E29: =H29/I29 -> 174.5454545 | F29: =H29/I30 -> 124.6753247 | H29: 144000 | I29: =PRODUCT(8.25,100) -> 825 | J29: =H29/I27 -> 218.1818182 | M29: =PRODUCT(L5,0.7) -> 63
D30: =H30/I28 -> 330.8051948 | E30: =H30/I29 -> 231.5636364 | F30: =H30/I30 -> 165.4025974 | H30: 191040 | I30: =PRODUCT(8.25,140) -> 1155 | J30: =H30/I27 -> 289.4545455 | M30: 63
D31: =H31/I28 -> 330.8051948 | E31: =H31/I29 -> 231.5636364 | F31: =H31/I30 -> 165.4025974 | H31: 191040 | J31: =H31/I27 -> 289.4545455 | M31: 63
D32: =H32/I28 -> 468.8311688 | E32: =H32/I29 -> 328.1818182 | F32: =H32/I30 -> 234.4155844 | H32: 270750 | J32: =H32/I27 -> 410.2272727 | M32: 63
D33: =H33/I28 -> 468.8311688 | E33: =H33/I29 -> 328.1818182 | F33: =H33/I30 -> 234.4155844 | H33: 270750 | J33: =H33/I27 -> 410.2272727 | M33: 77
D34: =H34/I28 -> 656.3636364 | E34: =H34/I29 -> 459.4545455 | F34: =H34/I30 -> 328.1818182 | H34: 379050 | J34: =H34/I27 -> 574.3181818 | M34: 77
D35: =H35/I28 -> 656.3636364 | E35: =H35/I29 -> 459.4545455 | F35: =H35/I30 -> 328.1818182 | H35: 379050 | J35: =H35/I27 -> 574.3181818 | M35: 77
D36: =H36/I28 -> 831.1688312 | E36: =H36/I29 -> 581.8181818 | F36: =H36/I30 -> 415.5844156 | H36: 480000 | J36: =H36/I27 -> 727.2727273 | M36: 77
M37: 77

Sheet SHIELD WH
A1: Water Heater Schedule: | E1: SHIELD | G1: 1. Select model from drop-down choices in "Water Heater X" box(es). 2. Choose the variables (w/red headings) to complete the line item. NOTE: Cell values can be manually changed as needed. A new copy of the schedule will be needed to restore auto-population. | L1: This schedule is designed to be used for up to 8 units that will be in a cascade. This means a number of specifications will be the same for each unit. Use the drop down menus in columns with red headings to select the desired spec. For units that stand alone, or are in a different area of the building; use the RESET button to create separate schedules.
B2: Water Heater 1 | E2: Water Heater 2 | H2: Water Heater 3 | K2: Water Heater 4 | N2: Water Heater 5 | Q2: Water Heater 6 | T2: Water Heater 7 | W2: Water Heater 8
B4: 2 | C4: 3 | D4: 4 | E4: 5 | F4: 6 | G4: 7 | H4: 8 | I4: 9 | J4: 10 | K4: 11 | L4: 12 | M4: 13 | N4: 14 | O4: 15 | P4: 16 | Q4: 17 | R4: 18 | S4: 19 | T4: 20 | U4: 21 | V4: 22 | W4: 23 | X4: 24 | Y4: 25 | Z4: 26 | AA4: 27
A5: UNIT DESCRIPTION | F5: GAS | L5: WATER | T5: ELECTRICAL | W5: DIMENSIONS
A6: TAG | B6: MAKE | C6: MODEL | D6: THERMAL EFFICIENCY | E6: CONSTRUCTION TYPE (STD. or ASME) | F6: FUEL TYPE | G6: BTU/HR INPUT | H6: TURNDOWN RATIO | I6: GAS CONNECTION DIA | J6: MAXIMUM INLET GAS PRESSURE (IN. W.C.) | K6: MINIMUM INLET GAS PRESSURE (IN.W.C) | L6: GALLON CAPACITY | M6: GPH @ _oF RISE | N6: 1st HR. DELIVERY | O6: WATER CONNECTION DIAMETER | P6: DRAIN SIZE | Q6: COMMON PIPING: | R6: DOMESTIC E.W.T. (°F) | S6: STORED H20 TEMP (F°) | T6: POWER SUPPLY | U6: HEATER CONTROLS | V6: TOTAL AMPS | W6: AIR INLET DIAMETER | X6: VENT DIAMETER | Y6: VENT MATERIAL | Z6: HEIGHT | AA6: DIAMETER
A8: =IF($B8="lochinvar","WH-1","") ->  | B8: =_xlfn.IFNA(VLOOKUP($B$3,Info!$A4:$AA14,B4,FALSE),"") ->  | C8: =_xlfn.IFNA(VLOOKUP($B$3,Info!$A:$AB,C4,FALSE),"") ->  | D8: =_xlfn.IFNA(VLOOKUP($B$3,Info!$A:$AB,D4,FALSE),"") ->  | E8: =_xlfn.IFNA(VLOOKUP($B$3,Info!$A:$AB,E4,FALSE),"") ->  | G8: =_xlfn.IFNA(VLOOKUP($B$3,Info!$A:$AA,G4,FALSE),"") ->  | H8: =_xlfn.IFNA(VLOOKUP($B$3,Info!$A:$AA,H4,FALSE),"") ->  | I8: =_xlfn.IFNA(VLOOKUP($B$3,Info!$A:$AA,I4,FALSE),"") ->  | J8: =_xlfn.IFNA(VLOOKUP($B$3,Info!$A:$AA,J4,FALSE),"") ->  | K8: =_xlfn.IFNA(VLOOKUP(F8,Info!A15:B16,2,FALSE),"") ->  | L8: =_xlfn.IFNA(VLOOKUP($B$3,Info!$A:$AA,L4,FALSE),"") ->  | M8: =_xlfn.IFNA(VLOOKUP(C8,Info!L16:P25,MATCH(M7,Info!L15:P15,0),FALSE),"") ->  | N8: =_xlfn.IFNA(VLOOKUP(C8,Info!Q16:U25,MATCH(M7,Info!Q15:U15,0),FALSE),"") ->  | O8: =_xlfn.IFNA(VLOOKUP($B$3,Info!$A:$AA,O4,FALSE),"") ->  | P8: =_xlfn.IFNA(VLOOKUP($B$3,Info!$A:$AA,P4,FALSE),"") ->  | S8: =IF(R8="","",M7+R8) ->  | T8: =_xlfn.IFNA(VLOOKUP($B$3,Info!$A:$AA,T4,FALSE),"") ->  | U8: =_xlfn.IFNA(VLOOKUP($B$3,Info!$A:$AA,U4,FALSE),"") ->  | V8: =_xlfn.IFNA(VLOOKUP($B$3,Info!$A:$AA,V4,FALSE),"") ->  | W8: =_xlfn.IFNA(VLOOKUP($B$3,Info!$A:$AA,W4,FALSE),"") ->  | X8: =_xlfn.IFNA(VLOOKUP($B$3,Info!$A:$AA,X4,FALSE),"") ->  | Z8: =_xlfn.IFNA(VLOOKUP($B$3,Info!$A:$AA,Z4,FALSE),"") ->  | AA8: =_xlfn.IFNA(VLOOKUP($B$3,Info!$A:$AA,AA4,FALSE),"") -> 
A9: =IF($B9="lochinvar","WH-2","") ->  | B9: =_xlfn.IFNA(VLOOKUP($E$3,Info!$A:$AB,B4,FALSE),"") ->  | C9: =_xlfn.IFNA(VLOOKUP($E$3,Info!$A:$AB,C4,FALSE),"") ->  | D9: =_xlfn.IFNA(VLOOKUP($E$3,Info!$A:$AB,D4,FALSE),"") ->  | E9: =_xlfn.IFNA(VLOOKUP($E$3,Info!$A:$AB,E4,FALSE),"") ->  | F9: =IF($E9="","",F8) ->  | G9: =_xlfn.IFNA(VLOOKUP($E$3,Info!$A:$AB,G4,FALSE),"") ->  | H9: =_xlfn.IFNA(VLOOKUP($E$3,Info!$A:$AB,H4,FALSE),"") ->  | I9: =_xlfn.IFNA(VLOOKUP($E$3,Info!$A:$AB,I4,FALSE),"") ->  | J9: =_xlfn.IFNA(VLOOKUP($E$3,Info!$A:$AB,J4,FALSE),"") ->  | K9: =_xlfn.IFNA(VLOOKUP(F9,Info!A15:B16,2,FALSE),"") ->  | L9: =_xlfn.IFNA(VLOOKUP($E$3,Info!$A:$AB,L4,FALSE),"") ->  | M9: =_xlfn.IFNA(VLOOKUP(C9,Info!L16:P25,MATCH(M7,Info!L15:P15,0),FALSE),"") ->  | N9: =_xlfn.IFNA(VLOOKUP(C9,Info!Q16:U25,MATCH(M7,Info!Q15:U15,0),FALSE),"") ->  | O9: =_xlfn.IFNA(VLOOKUP($E$3,Info!$A:$AB,O4,FALSE),"") ->  | P9: =_xlfn.IFNA(VLOOKUP($E$3,Info!$A:$AB,P4,FALSE),"") ->  | Q9: =IF($P9="","",Q8) ->  | R9: =IF(Q9="","",R8) ->  | S9: =IF(R9="","",M7+R9) ->  | T9: =_xlfn.IFNA(VLOOKUP($E$3,Info!$A:$AA,T4,FALSE),"") ->  | U9: =_xlfn.IFNA(VLOOKUP($E$3,Info!$A:$AA,U4,FALSE),"") ->  | V9: =_xlfn.IFNA(VLOOKUP($E$3,Info!$A:$AA,V4,FALSE),"") ->  | W9: =_xlfn.IFNA(VLOOKUP($E$3,Info!$A:$AA,W4,FALSE),"") ->  | X9: =_xlfn.IFNA(VLOOKUP($E$3,Info!$A:$AB,W4,FALSE),"") ->  | Y9: =IF(X9="","",Y8) ->  | Z9: =_xlfn.IFNA(VLOOKUP($E$3,Info!$A:$AB,Z4,FALSE),"") ->  | AA9: =_xlfn.IFNA(VLOOKUP($E$3,Info!$A:$AA,AA4,FALSE),"") -> 
A10: =IF($B10="lochinvar","WH-3","") ->  | B10: =_xlfn.IFNA(VLOOKUP($H$3,Info!$A:$AB,B4,FALSE),"") ->  | C10: =_xlfn.IFNA(VLOOKUP($H$3,Info!$A:$AB,C4,FALSE),"") ->  | D10: =_xlfn.IFNA(VLOOKUP($H$3,Info!$A:$AB,D4,FALSE),"") ->  | E10: =_xlfn.IFNA(VLOOKUP($H$3,Info!$A:$AB,E4,FALSE),"") ->  | G10: =_xlfn.IFNA(VLOOKUP($H$3,Info!$A:$AB,G4,FALSE),"") ->  | H10: =_xlfn.IFNA(VLOOKUP($H$3,Info!$A:$AB,H4,FALSE),"") ->  | I10: =_xlfn.IFNA(VLOOKUP($H$3,Info!$A:$AB,I4,FALSE),"") ->  | J10: =_xlfn.IFNA(VLOOKUP($H$3,Info!$A:$AB,J4,FALSE),"") ->  | K10: =_xlfn.IFNA(VLOOKUP(F10,Info!A15:B16,2,FALSE),"") ->  | L10: =_xlfn.IFNA(VLOOKUP($H$3,Info!$A:$AB,L4,FALSE),"") ->  | M10: =_xlfn.IFNA(VLOOKUP(C10,Info!L16:P25,MATCH(M7,Info!L15:P15,0),FALSE),"") ->  | N10: =_xlfn.IFNA(VLOOKUP(C10,Info!Q16:U25,MATCH(M7,Info!Q15:U15,0),FALSE),"") ->  | O10: =_xlfn.IFNA(VLOOKUP($H$3,Info!$A:$AB,O4,FALSE),"") ->  | P10: =_xlfn.IFNA(VLOOKUP($H$3,Info!$A:$AB,P4,FALSE),"") ->  | R10: =IF(Q10="","",R9) ->  | S10: =IF(R10="","",M7+R10) ->  | T10: =_xlfn.IFNA(VLOOKUP($H$3,Info!$A:$AA,T4,FALSE),"") ->  | U10: =_xlfn.IFNA(VLOOKUP($H$3,Info!$A:$AA,U4,FALSE),"") ->  | V10: =_xlfn.IFNA(VLOOKUP($H$3,Info!$A:$AA,V4,FALSE),"") ->  | W10: =_xlfn.IFNA(VLOOKUP($H$3,Info!$A:$AA,W4,FALSE),"") ->  | X10: =_xlfn.IFNA(VLOOKUP($H$3,Info!$A:$AB,W4,FALSE),"") ->  | Y10: =IF(X10="","",Y9) ->  | Z10: =_xlfn.IFNA(VLOOKUP($H$3,Info!$A:$AB,Z4,FALSE),"") ->  | AA10: =_xlfn.IFNA(VLOOKUP($H$3,Info!$A:$AA,AA4,FALSE),"") -> 
A11: =IF($B11="lochinvar","WH-4","") ->  | B11: =_xlfn.IFNA(VLOOKUP($K$3,Info!$A:$AB,B4,FALSE),"") ->  | C11: =_xlfn.IFNA(VLOOKUP($K$3,Info!$A:$AB,C4,FALSE),"") ->  | D11: =_xlfn.IFNA(VLOOKUP($K$3,Info!$A:$AB,D4,FALSE),"") ->  | E11: =_xlfn.IFNA(VLOOKUP($K$3,Info!$A:$AB,E4,FALSE),"") ->  | G11: =_xlfn.IFNA(VLOOKUP($K$3,Info!$A:$AB,G4,FALSE),"") ->  | H11: =_xlfn.IFNA(VLOOKUP($K$3,Info!$A:$AB,H4,FALSE),"") ->  | I11: =_xlfn.IFNA(VLOOKUP($K$3,Info!$A:$AB,I4,FALSE),"") ->  | J11: =_xlfn.IFNA(VLOOKUP($K$3,Info!$A:$AB,J4,FALSE),"") ->  | K11: =_xlfn.IFNA(VLOOKUP(F11,Info!A15:B16,2,FALSE),"") ->  | L11: =_xlfn.IFNA(VLOOKUP($K$3,Info!$A:$AB,L4,FALSE),"") ->  | M11: =_xlfn.IFNA(VLOOKUP(C11,Info!L16:P25,MATCH(M7,Info!L15:P15,0),FALSE),"") ->  | N11: =_xlfn.IFNA(VLOOKUP(C11,Info!Q16:U25,MATCH(M7,Info!Q15:U15,0),FALSE),"") ->  | O11: =_xlfn.IFNA(VLOOKUP($K$3,Info!$A:$AB,O4,FALSE),"") ->  | P11: =_xlfn.IFNA(VLOOKUP($K$3,Info!$A:$AB,P4,FALSE),"") ->  | S11: =IF(R11="","",M7+R11) ->  | T11: =_xlfn.IFNA(VLOOKUP($K$3,Info!$A:$AA,T4,FALSE),"") ->  | U11: =_xlfn.IFNA(VLOOKUP($K$3,Info!$A:$AA,U4,FALSE),"") ->  | V11: =_xlfn.IFNA(VLOOKUP($K$3,Info!$A:$AA,V4,FALSE),"") ->  | W11: =_xlfn.IFNA(VLOOKUP($K$3,Info!$A:$AA,W4,FALSE),"") ->  | X11: =_xlfn.IFNA(VLOOKUP($K$3,Info!$A:$AB,W4,FALSE),"") ->  | Z11: =_xlfn.IFNA(VLOOKUP($K$3,Info!$A:$AB,Z4,FALSE),"") ->  | AA11: =_xlfn.IFNA(VLOOKUP($K$3,Info!$A:$AA,AA4,FALSE),"") -> 
A12: =IF($B12="lochinvar","WH-5","") ->  | B12: =_xlfn.IFNA(VLOOKUP($N$3,Info!$A:$AB,B4,FALSE),"") ->  | C12: =_xlfn.IFNA(VLOOKUP($N$3,Info!$A:$AB,C4,FALSE),"") ->  | D12: =_xlfn.IFNA(VLOOKUP($N$3,Info!$A:$AB,D4,FALSE),"") ->  | E12: =_xlfn.IFNA(VLOOKUP($N$3,Info!$A:$AB,E4,FALSE),"") ->  | G12: =_xlfn.IFNA(VLOOKUP($N$3,Info!$A:$AB,G4,FALSE),"") ->  | H12: =_xlfn.IFNA(VLOOKUP($N$3,Info!$A:$AB,H4,FALSE),"") ->  | I12: =_xlfn.IFNA(VLOOKUP($N$3,Info!$A:$AB,I4,FALSE),"") ->  | J12: =_xlfn.IFNA(VLOOKUP($N$3,Info!$A:$AB,J4,FALSE),"") ->  | K12: =_xlfn.IFNA(VLOOKUP(F12,Info!A15:B16,2,FALSE),"") ->  | L12: =_xlfn.IFNA(VLOOKUP($N$3,Info!$A:$AB,L4,FALSE),"") ->  | M12: =_xlfn.IFNA(VLOOKUP(C12,Info!L16:P25,MATCH(M7,Info!L15:P15,0),FALSE),"") ->  | N12: =_xlfn.IFNA(VLOOKUP(C12,Info!Q16:U25,MATCH(M7,Info!Q15:U15,0),FALSE),"") ->  | O12: =_xlfn.IFNA(VLOOKUP($N$3,Info!$A:$AB,O4,FALSE),"") ->  | P12: =_xlfn.IFNA(VLOOKUP($N$3,Info!$A:$AB,P4,FALSE),"") ->  | S12: =IF(R12="","",M7+R12) ->  | T12: =_xlfn.IFNA(VLOOKUP($N$3,Info!$A:$AA,T4,FALSE),"") ->  | U12: =_xlfn.IFNA(VLOOKUP($N$3,Info!$A:$AA,U4,FALSE),"") ->  | V12: =_xlfn.IFNA(VLOOKUP($N$3,Info!$A:$AA,V4,FALSE),"") ->  | W12: =_xlfn.IFNA(VLOOKUP($N$3,Info!$A:$AA,W4,FALSE),"") ->  | X12: =_xlfn.IFNA(VLOOKUP($N$3,Info!$A:$AB,W4,FALSE),"") ->  | Z12: =_xlfn.IFNA(VLOOKUP($N$3,Info!$A:$AB,Z4,FALSE),"") ->  | AA12: =_xlfn.IFNA(VLOOKUP($N$3,Info!$A:$AA,AA4,FALSE),"") -> 
A13: =IF($B13="lochinvar","WH-6","") ->  | B13: =_xlfn.IFNA(VLOOKUP($Q$3,Info!$A:$AB,B4,FALSE),"") ->  | C13: =_xlfn.IFNA(VLOOKUP($Q$3,Info!$A:$AB,C4,FALSE),"") ->  | D13: =_xlfn.IFNA(VLOOKUP($Q$3,Info!$A:$AB,D4,FALSE),"") ->  | E13: =_xlfn.IFNA(VLOOKUP($Q$3,Info!$A:$AB,E4,FALSE),"") ->  | G13: =_xlfn.IFNA(VLOOKUP($Q$3,Info!$A:$AB,G4,FALSE),"") ->  | H13: =_xlfn.IFNA(VLOOKUP($Q$3,Info!$A:$AB,H4,FALSE),"") ->  | I13: =_xlfn.IFNA(VLOOKUP($Q$3,Info!$A:$AB,I4,FALSE),"") ->  | J13: =_xlfn.IFNA(VLOOKUP($Q$3,Info!$A:$AB,J4,FALSE),"") ->  | K13: =_xlfn.IFNA(VLOOKUP(F13,Info!A15:B16,2,FALSE),"") ->  | L13: =_xlfn.IFNA(VLOOKUP($Q$3,Info!$A:$AB,L4,FALSE),"") ->  | M13: =_xlfn.IFNA(VLOOKUP(C13,Info!L16:P25,MATCH(M7,Info!L15:P15,0),FALSE),"") ->  | N13: =_xlfn.IFNA(VLOOKUP(C13,Info!Q16:U25,MATCH(M7,Info!Q15:U15,0),FALSE),"") ->  | O13: =_xlfn.IFNA(VLOOKUP($Q$3,Info!$A:$AB,O4,FALSE),"") ->  | P13: =_xlfn.IFNA(VLOOKUP($Q$3,Info!$A:$AB,P4,FALSE),"") ->  | S13: =IF(R13="","",M7+R13) ->  | T13: =_xlfn.IFNA(VLOOKUP($Q$3,Info!$A:$AA,T4,FALSE),"") ->  | U13: =_xlfn.IFNA(VLOOKUP($Q$3,Info!$A:$AA,U4,FALSE),"") ->  | V13: =_xlfn.IFNA(VLOOKUP($Q$3,Info!$A:$AA,V4,FALSE),"") ->  | W13: =_xlfn.IFNA(VLOOKUP($Q$3,Info!$A:$AA,W4,FALSE),"") ->  | X13: =_xlfn.IFNA(VLOOKUP($Q$3,Info!$A:$AB,W4,FALSE),"") ->  | Z13: =_xlfn.IFNA(VLOOKUP($Q$3,Info!$A:$AB,Z4,FALSE),"") ->  | AA13: =_xlfn.IFNA(VLOOKUP($Q$3,Info!$A:$AA,AA4,FALSE),"") -> 
A14: =IF($B14="lochinvar","WH-7","") ->  | B14: =_xlfn.IFNA(VLOOKUP($T$3,Info!$A:$AB,B4,FALSE),"") ->  | C14: =_xlfn.IFNA(VLOOKUP($T$3,Info!$A:$AB,C4,FALSE),"") ->  | D14: =_xlfn.IFNA(VLOOKUP($T$3,Info!$A:$AB,D4,FALSE),"") ->  | E14: =_xlfn.IFNA(VLOOKUP($T$3,Info!$A:$AB,E4,FALSE),"") ->  | G14: =_xlfn.IFNA(VLOOKUP($T$3,Info!$A:$AB,G4,FALSE),"") ->  | H14: =_xlfn.IFNA(VLOOKUP($T$3,Info!$A:$AB,H4,FALSE),"") ->  | I14: =_xlfn.IFNA(VLOOKUP($T$3,Info!$A:$AB,I4,FALSE),"") ->  | J14: =_xlfn.IFNA(VLOOKUP($T$3,Info!$A:$AB,J4,FALSE),"") ->  | K14: =_xlfn.IFNA(VLOOKUP(F14,Info!A15:B16,2,FALSE),"") ->  | L14: =_xlfn.IFNA(VLOOKUP($T$3,Info!$A:$AB,L4,FALSE),"") ->  | M14: =_xlfn.IFNA(VLOOKUP(C14,Info!L16:P25,MATCH(M7,Info!L15:P15,0),FALSE),"") ->  | N14: =_xlfn.IFNA(VLOOKUP(C14,Info!Q16:U25,MATCH(M7,Info!Q15:U15,0),FALSE),"") ->  | O14: =_xlfn.IFNA(VLOOKUP($T$3,Info!$A:$AB,O4,FALSE),"") ->  | P14: =_xlfn.IFNA(VLOOKUP($T$3,Info!$A:$AB,P4,FALSE),"") ->  | S14: =IF(R14="","",M7+R14) ->  | T14: =_xlfn.IFNA(VLOOKUP($T$3,Info!$A:$AA,T4,FALSE),"") ->  | U14: =_xlfn.IFNA(VLOOKUP($T$3,Info!$A:$AA,U4,FALSE),"") ->  | V14: =_xlfn.IFNA(VLOOKUP($T$3,Info!$A:$AA,V4,FALSE),"") ->  | W14: =_xlfn.IFNA(VLOOKUP($T$3,Info!$A:$AA,W4,FALSE),"") ->  | X14: =_xlfn.IFNA(VLOOKUP($T$3,Info!$A:$AB,W4,FALSE),"") ->  | Z14: =_xlfn.IFNA(VLOOKUP($T$3,Info!$A:$AB,Z4,FALSE),"") ->  | AA14: =_xlfn.IFNA(VLOOKUP($T$3,Info!$A:$AA,AA4,FALSE),"") -> 
A15: =IF($B15="lochinvar","WH-8","") ->  | B15: =_xlfn.IFNA(VLOOKUP($W$3,Info!$A:$AB,B4,FALSE),"") ->  | C15: =_xlfn.IFNA(VLOOKUP($W$3,Info!$A:$AB,C4,FALSE),"") ->  | D15: =_xlfn.IFNA(VLOOKUP($W$3,Info!$A:$AB,D4,FALSE),"") ->  | E15: =_xlfn.IFNA(VLOOKUP($W$3,Info!$A:$AB,E4,FALSE),"") ->  | G15: =_xlfn.IFNA(VLOOKUP($W$3,Info!$A:$AB,G4,FALSE),"") ->  | H15: =_xlfn.IFNA(VLOOKUP($W$3,Info!$A:$AB,H4,FALSE),"") ->  | I15: =_xlfn.IFNA(VLOOKUP($W$3,Info!$A:$AB,I4,FALSE),"") ->  | J15: =_xlfn.IFNA(VLOOKUP($W$3,Info!$A:$AB,J4,FALSE),"") ->  | K15: =_xlfn.IFNA(VLOOKUP(F15,Info!A15:B16,2,FALSE),"") ->  | L15: =_xlfn.IFNA(VLOOKUP($W$3,Info!$A:$AB,L4,FALSE),"") ->  | M15: =_xlfn.IFNA(VLOOKUP(C15,Info!L16:P25,MATCH(M7,Info!L15:P15,0),FALSE),"") ->  | N15: =_xlfn.IFNA(VLOOKUP(C15,Info!Q16:U25,MATCH(M7,Info!Q15:U15,0),FALSE),"") ->  | O15: =_xlfn.IFNA(VLOOKUP($W$3,Info!$A:$AB,O4,FALSE),"") ->  | P15: =_xlfn.IFNA(VLOOKUP($W$3,Info!$A:$AB,P4,FALSE),"") ->  | S15: =IF(R15="","",M7+R15) ->  | T15: =_xlfn.IFNA(VLOOKUP($W$3,Info!$A:$AA,T4,FALSE),"") ->  | U15: =_xlfn.IFNA(VLOOKUP($W$3,Info!$A:$AA,U4,FALSE),"") ->  | V15: =_xlfn.IFNA(VLOOKUP($W$3,Info!$A:$AA,V4,FALSE),"") ->  | W15: =_xlfn.IFNA(VLOOKUP($W$3,Info!$A:$AB,W4,FALSE),"") ->  | X15: =_xlfn.IFNA(VLOOKUP($W$3,Info!$A:$AB,W4,FALSE),"") ->  | Z15: =_xlfn.IFNA(VLOOKUP($W$3,Info!$A:$AB,Z4,FALSE),"") ->  | AA15: =_xlfn.IFNA(VLOOKUP($W$3,Info!$A:$AA,AA4,FALSE),"") -> 
A17: Schedule Notes:
A18: 1. Water heater shall be certified to CSA International, ANSI Z21.10.3 and Low Lead Certified.
A19: 2. AHRI Certification required with a minimum acceptable efficiency of 95%.
A20: 3. All heat exchanger surfaces must be stainless steel.
A21: 4. Water heater to have fully modulating burner, operating from 20% to 100% firing rate.
A22: 5. Water heater shall have digital LCD interface with the ability to be integrated via BACnet MSTP, BACnet IP, Modbus and LonWorks communication.
A23: 6. Water heater to have the ability for remote monitoring communication via internet connection.
A24: 7. Water heater to include alarm, runtime and enable/disable contacts required for BMS integration.
A25: 8. High temp flue safety shutoff sensor required.
A26: 9. Condensate drain must be a minimum of 6 inches off the mechanical room floor. Mechanical pad may be required to achieve proper slope to drain.
A27: 10. Manufacturers condensate neutralization kit shall be provided with each water heater. | G27: P/N = | H27: <Select>
